fUSD/lending_fUSD_20250120
["ID","MTS","AMOUNT","RATE_DAILY","PERIOD"]
[349755453,1737413483860,-3211.18,0.00021917,2]
[349755454,1737413483960,-1259.28,0.00021917,2]
[349755455,1737413483980,-584.09,0.00021917,2]
[349755456,1737413483990,-500.0,0.00021917,2]
[349755457,1737413483999,-500.0,0.00021917,2]
[349755458,1737413484008,-1439.49,0.00021917,2]
[349755459,1737413484018,-2420.13,0.00021917,2]
[349755460,1737413484027,-1512.65,0.00021917,2]
[349755461,1737413484036,-804.6,0.00021917,2]
[349755462,1737413484045,-1094.44,0.00021917,2]
[349755463,1737413484055,-4105.14,0.00021917,2]
[349755464,1737413484064,-500.0,0.00021917,2]
[349755465,1737413484074,-2309.98,0.00021917,2]
[349755466,1737413484083,-1161.24,0.00021917,2]
[349755467,1737413484093,-1549.06,0.00021917,2]
[349755468,1737413484103,-1981.88,0.00021917,2]
[349755469,1737413484112,-1608.56,0.00021917,2]
[349755470,1737413484122,-1093.11,0.00021917,2]
[349755471,1737413484132,-845.76,0.00021917,2]
[349755472,1737413484141,-500.0,0.00021917,2]
[349755473,1737413484152,-2649.0,0.00021917,2]
[349755474,1737413484162,-500.0,0.00021917,2]
[349755475,1737413484172,-500.0,0.00021917,2]
[349755476,1737413484184,-881.77,0.00021917,2]
[349755477,1737413484194,-1503.8,0.00021917,2]
[349755478,1737413484205,-1140.51,0.00021917,2]
[349755479,1737413484214,-2925.51,0.00021917,2]
[349755480,1737413484224,-577.32,0.00021917,2]
[349755481,1737413484234,-500.0,0.00021917,2]
[349755482,1737413484245,-927.97,0.00021917,2]
[349755483,1737413484255,-2594.35,0.00021917,2]
[349755484,1737413484265,-500.0,0.00021917,2]
[349755485,1737413484276,-507.59,0.00021917,2]
[349755486,1737413484286,-500.0,0.00021917,2]
[349755487,1737413484296,-500.0,0.00021917,2]
[349755488,1737413484306,-1661.79,0.00021917,2]
[349755489,1737413484316,-649.35,0.00021917,2]
[349755490,1737413484326,-1410.08,0.00021917,2]
[349755491,1737413484337,-848.08,0.00021917,2]
[349755492,1737413484349,-2182.08,0.00021917,2]
[349755493,1737413484358,-150.0,0.00021918,2]
[349755494,1737413484368,-4000.0,0.00021918,2]
[349755495,1737413484378,-2000.0,0.00021922,2]
[349755496,1737413484388,-5800.0,0.00021923,2]
[349755497,1737413484398,-150.0,0.00021942,2]
[349755498,1737413484407,-150.0,0.00021951,2]
[349755499,1737413484417,-500.0,0.00021953,2]
[349755500,1737413484427,-5171.03,0.00021959,7]
[349755501,1737413484436,-5171.03,0.00021959,7]
[349755502,1737413484447,-150.0,0.00021966,2]
[349755503,1737413484457,-150.0,0.00021969,2]
[349755504,1737413484466,-500.0,0.00021973,2]
[349755505,1737413484476,-6716.35096601,0.00021979,2]
[349755506,1737413484486,-23788.71,0.0002198,7]
[349755507,1737413484496,-2080.4649396,0.00021985,2]
[349755508,1737413484506,-1620.0419208,0.00021985,2]
[349755509,1737413484516,-1159.6189021,0.00021985,2]
[349755510,1737413484526,-699.1958834,0.00021985,2]
[349755511,1737413484535,-238.7728646,0.00021985,2]
[349755512,1737413484545,-150.0,0.00021994,2]
[349755513,1737413484555,-88158.43283362,0.00021996,2]
[349755514,1737413484564,-324.87988418,0.00021999,2]
[349755515,1737413484574,-500.0,0.00021999,2]
[349755516,1737413484583,-525.89888451,0.00021999,2]
[349755517,1737413484593,-502.6940688,0.00021999,2]
[349755518,1737413484603,-2000.0,0.00021999,2]
[349755519,1737413484613,-2000.0,0.00021999,2]
[349755520,1737413484622,-2000.0,0.00021999,2]
[349755521,1737413484632,-2000.0,0.00021999,2]
[349755522,1737413484641,-500.0,0.00021999,2]
[349755523,1737413484650,-500.0,0.00021999,2]
[349755524,1737413484659,-150.0,0.00021999,2]
[349755525,1737413484669,-500.0,0.00021999,2]
[349755526,1737413484679,-500.0,0.00021999,2]
[349755527,1737413484688,-500.0,0.00021999,2]
[349755528,1737413484697,-500.0,0.00021999,2]
[349755529,1737413484707,-500.0,0.00021999,2]
[349755530,1737413484716,-397.83170798,0.00021999,2]
[349755531,1737413484726,-500.0,0.00021999,2]
[349755532,1737413484736,-500.0,0.00021999,2]
[349755533,1737413484747,-500.0,0.00021999,2]
[349755534,1737413484756,-500.0,0.00021999,2]
[349755535,1737413484766,-500.0,0.00021999,2]
[349755536,1737413484775,-500.0,0.00021999,2]
[349755537,1737413484784,-500.0,0.00021999,2]
[349755538,1737413484794,-500.0,0.00021999,2]
[349755539,1737413484803,-150.0,0.00021999,2]
[349755540,1737413484812,-500.0,0.00021999,2]
[349755541,1737413484822,-502.4827353,0.00021999,2]
[349755542,1737413484831,-5000.0,0.00021999,2]
[349755543,1737413484843,-500.0,0.00021999,2]
[349755544,1737413484852,-500.0,0.00021999,2]
[349755545,1737413484861,-436.72045769,0.00021999,2]
[349755546,1737413484870,-501.05169818,0.00021999,2]
[349755547,1737413484880,-500.0,0.00021999,2]
[349755548,1737413484890,-500.0,0.00021999,2]
[349755549,1737413484900,-500.0,0.00021999,2]
[349755550,1737413484910,-500.0,0.00021999,2]
[349755551,1737413484920,-500.0,0.00021999,2]
[349755552,1737413484930,-500.0,0.00021999,2]
[349755553,1737413484939,-500.0,0.00021999,2]
[349755554,1737413484950,-500.0,0.00021999,2]
[349755555,1737413484960,-500.0,0.00021999,2]
[349755556,1737413484969,-500.0,0.00021999,2]
[349755557,1737413484979,-500.0,0.00021999,2]
[349755558,1737413484989,-500.0,0.00021999,2]
[349755559,1737413484999,-500.0,0.00021999,2]
[349755560,1737413485008,-500.0,0.00021999,2]
[349755561,1737413485018,-500.0,0.00021999,2]
[349755562,1737413485027,-500.0,0.00021999,2]
[349755563,1737413485037,-500.0,0.00021999,2]
[349755564,1737413485047,-500.0,0.00021999,2]
[349755565,1737413485057,-500.0,0.00021999,2]
[349755566,1737413485066,-500.0,0.00021999,2]
[349755567,1737413485076,-500.0,0.00021999,2]
[349755568,1737413485085,-500.0,0.00021999,2]
[349755569,1737413485095,-500.0,0.00021999,2]
[349755570,1737413485105,-500.0,0.00021999,2]
[349755571,1737413485115,-500.0,0.00021999,2]
[349755572,1737413485125,-514.15279917,0.00021999,2]
[349755573,1737413485134,-500.0,0.00021999,2]
[349755574,1737413485144,-500.0,0.00021999,2]
[349755575,1737413485154,-500.0,0.00021999,2]
[349755576,1737413485164,-507.04536644,0.00021999,2]
[349755577,1737413485174,-500.0,0.00021999,2]
[349755578,1737413485184,-1000.0,0.00021999,2]
[349755579,1737413485198,-500.0,0.00021999,2]
[349755580,1737413485207,-500.0,0.00021999,2]
[349755581,1737413485218,-500.0,0.00021999,2]
[349755582,1737413485228,-2540.8879583,0.00021999,2]
[349755583,1737413485238,-500.0,0.00021999,2]
[349755584,1737413485247,-500.0,0.00021999,2]
[349755585,1737413485257,-500.0,0.00021999,2]
[349755586,1737413485268,-500.0,0.00021999,2]
[349755587,1737413485278,-500.0,0.00021999,2]
[349755588,1737413485288,-500.0,0.00021999,2]
[349755589,1737413485297,-500.0,0.00021999,2]
[349755590,1737413485306,-500.0,0.00021999,2]
[349755591,1737413485316,-544.26,0.00021999,2]
[349755592,1737413485326,-500.0,0.00021999,2]
[349755593,1737413485336,-500.0,0.00021999,2]
[349755594,1737413485345,-744.2,0.00021999,2]
[349755595,1737413485355,-500.0,0.00021999,2]
[349755596,1737413485365,-500.0,0.00021999,2]
[349755597,1737413485375,-500.0,0.00021999,2]
[349755598,1737413485384,-500.0,0.00021999,2]
[349755599,1737413485394,-860.47,0.00021999,2]
[349755600,1737413485404,-500.0,0.00021999,2]
[349755601,1737413485414,-890.53,0.00021999,2]
[349755602,1737413485423,-500.0,0.00021999,2]
[349755603,1737413485433,-500.0,0.00021999,2]
[349755604,1737413485443,-500.0,0.00021999,2]
[349755605,1737413485453,-500.0,0.00021999,2]
[349755606,1737413485463,-500.0,0.00021999,2]
[349755607,1737413485472,-500.0,0.00021999,2]
[349755608,1737413485482,-517.43,0.00021999,2]
[349755609,1737413485492,-500.0,0.00021999,2]
[349755610,1737413485502,-500.0,0.00021999,2]
[349755611,1737413485512,-500.0,0.00021999,2]
[349755612,1737413485522,-574.2,0.00021999,2]
[349755613,1737413485532,-500.0,0.00021999,2]
[349755614,1737413485541,-1688.77555853,0.00021999,2]
[349755615,1737413485551,-211.14710454,0.00022,2]
[349755616,1737413485561,-7426998.55960465,0.00022,2]
[349755617,1737413485571,-710921.75870239,0.00022,2]
[349755618,1737413485580,-380.68257078,0.00022,2]
[349755619,1737413485687,-1184722.92953712,0.00022,2]
[349755620,1737413485697,-500.0,0.00022,2]
[349755621,1737413485706,-500.0,0.00022,2]
[349755622,1737413485716,-500.0,0.00022,2]
[349755623,1737413485725,-1001.14772054,0.00022,2]
[349755624,1737413485734,-1838.9079087,0.00022,5]
[349755625,1737413485746,-558.42989404,0.00022,22]
[349755626,1737413485756,-32157.40336324,0.00022,2]
[349755627,1737413485766,-3369741.6593328,0.00022,2]
[349755628,1737413485776,-5000.0,0.00022,3]
[349755629,1737413485786,-500.0,0.00022,2]
[349755630,1737413485796,-15743.28,0.00022,8]
[349755631,1737413485805,-379.0,0.00022,2]
[349755632,1737413485815,-4544.0,0.00022,3]
[349755633,1737413485825,-1390365.19125838,0.00022,2]
[349755634,1737413485835,-7262051.88584342,0.00022,2]
[349755635,1737413486089,-43035.07224018,0.00022,2]
[349755636,1737413486101,-1016.43692835,0.00022,2]
[349755637,1737413486139,-710.83276191,0.00022,2]
[349755638,1737413486360,-500.0,0.00019178,2]
[349755639,1737413486371,-506.066442,0.00019178,2]
[349755640,1737413486380,-9073.00709657,0.00019252,2]
[349755641,1737413486390,-1770.47049242,0.000219,2]
[349755642,1737413486400,-75866.24950958,0.00022,2]
[349755643,1737413486410,-1800.0,0.00022,23]
[349755644,1737413486419,-115522.76330761,0.00022,2]
[349755645,1737413486431,-27426.73516892,0.00022,2]
[349755646,1737413486442,-287.665,0.00022,2]
[349755647,1737413486821,-6203.25000046,0.00019576,2]
[349755648,1737413486833,-2869.7570961,0.00019576,2]
[349755649,1737413486842,-3747.17725361,0.00022,2]
[349755650,1737413486858,-4733.51992956,0.00022,2]
[349755651,1737413487102,-487.96969057,0.00019178,2]
[349755652,1737413487112,-29.03030943,0.0002115,2]
[349755653,1737413487124,-200.96969057,0.0002115,2]
[349755654,1737413487134,-190.3508231,0.000218,2]
[349755655,1737413487144,-1144.83142737,0.00022,2]
[349755656,1737413487159,-1685.72076257,0.00022,2]
[349755658,1737413569479,500.0,0.00024,120]
[349755664,1737414278371,150.0,0.00011001,2]
[349755665,1737414300053,177.45,0.00010137,2]
[349755730,1737414637506,-550.0,0.00015,2]
[349755731,1737414637519,-177.45,0.00016813,2]
[349755732,1737414637528,-600.0,0.00017,2]
[349755733,1737414637537,-1234.84,0.00017402,2]
[349755734,1737414637547,-15563.38397603,0.0001839,2]
[349755735,1737414637704,-1639.72399548,0.0001839,2]
[349755736,1737414637713,-250.0,0.0001849,2]
[349755737,1737414637723,-250.0,0.00018748,2]
[349755738,1737414637731,-856.77,0.00018939,30]
[349755739,1737414637741,-545.414,0.00018978,2]
[349755740,1737414637750,-9564.30900816,0.00019078,2]
[349755741,1737414637759,-1000.0,0.00019078,2]
[349755742,1737414637769,-1827.7576,0.00019078,2]
[349755743,1737414637778,-2282.5399,0.00019078,2]
[349755744,1737414637787,-155.07,0.000191,2]
[349755745,1737414637796,-1000.0,0.00019149,2]
[349755746,1737414637806,-7438.34,0.0001915,2]
[349755747,1737414637815,-507.04536644,0.00019178,2]
[349755748,1737414637825,-500.0,0.00019178,2]
[349755749,1737414637834,-400.88495016,0.00019178,2]
[349755750,1737414637844,-296.58366446,0.00019178,2]
[349755751,1737414637854,-554.74722128,0.00019178,2]
[349755752,1737414637864,-500.0,0.00019178,2]
[349755753,1737414637874,-500.0,0.00019178,2]
[349755754,1737414637883,-500.0,0.00019178,2]
[349755755,1737414637892,-500.0,0.00019178,2]
[349755756,1737414637901,-500.0,0.00019178,2]
[349755757,1737414637911,-500.0,0.00019178,2]
[349755758,1737414637920,-367.16816725,0.00019178,2]
[349755759,1737414637930,-506.79161612,0.00019178,2]
[349755760,1737414637940,-500.0,0.00019178,2]
[349755761,1737414637950,-500.0,0.00019178,2]
[349755762,1737414637960,-370.97750126,0.00019178,2]
[349755763,1737414637971,-500.0,0.00019178,2]
[349755764,1737414637980,-500.0,0.00019178,2]
[349755765,1737414637989,-500.0,0.00019178,2]
[349755767,1737414637998,-500.0,0.00019178,2]
[349755769,1737414638008,-500.0,0.00019178,2]
[349755771,1737414638017,-500.0,0.00019178,2]
[349755773,1737414638026,-500.0,0.00019178,2]
[349755775,1737414638035,-500.0,0.00019178,2]
[349755776,1737414638044,-500.0,0.00019178,2]
[349755778,1737414638053,-500.0,0.00019178,2]
[349755780,1737414638062,-500.0,0.00019178,2]
[349755782,1737414638072,-500.0,0.00019178,2]
[349755784,1737414638082,-500.0,0.00019178,2]
[349755786,1737414638092,-500.0,0.00019178,2]
[349755788,1737414638101,-500.0,0.00019178,2]
[349755790,1737414638113,-500.0,0.00019178,2]
[349755792,1737414638123,-500.0,0.00019178,2]
[349755795,1737414638134,-238.29,0.00019178,2]
[349755797,1737414638144,-500.0,0.00019178,2]
[349755798,1737414638154,-500.0,0.00019178,2]
[349755800,1737414638164,-500.0,0.00019178,2]
[349755802,1737414638173,-500.0,0.00019178,2]
[349755804,1737414638183,-500.0,0.00019178,2]
[349755806,1737414638193,-500.0,0.00019178,2]
[349755808,1737414638202,-271.54139549,0.00019178,2]
[349755810,1737414638213,-500.0,0.00019178,2]
[349755812,1737414638223,-500.0,0.00019178,2]
[349755814,1737414638232,-500.0,0.00019178,2]
[349755816,1737414638241,-500.0,0.00019178,2]
[349755819,1737414638251,-500.0,0.00019178,2]
[349755820,1737414638260,-500.0,0.00019178,2]
[349755822,1737414638269,-500.0,0.00019178,2]
[349755824,1737414638279,-885.11,0.00019178,2]
[349755826,1737414638288,-357.73412678,0.00019178,2]
[349755828,1737414638298,-500.0,0.00019178,2]
[349755830,1737414638307,-500.0,0.00019178,2]
[349755832,1737414638317,-500.0,0.00019178,2]
[349755834,1737414638326,-500.0,0.00019178,2]
[349755836,1737414638336,-500.0,0.00019178,2]
[349755838,1737414638345,-500.0,0.00019178,2]
[349755840,1737414638355,-500.0,0.00019178,2]
[349755842,1737414638367,-500.0,0.00019178,2]
[349755844,1737414638377,-500.0,0.00019178,2]
[349755846,1737414638386,-500.0,0.00019178,2]
[349755848,1737414638395,-500.0,0.00019178,2]
[349755850,1737414638405,-500.0,0.00019178,2]
[349755851,1737414638414,-500.0,0.00019178,2]
[349755852,1737414638423,-500.0,0.00019178,2]
[349755853,1737414638433,-500.0,0.00019178,2]
[349755854,1737414638442,-500.0,0.00019178,2]
[349755855,1737414638452,-500.0,0.00019178,2]
[349755856,1737414638461,-500.0,0.00019178,2]
[349755857,1737414638471,-500.0,0.00019178,2]
[349755858,1737414638481,-500.0,0.00019178,2]
[349755859,1737414638491,-500.0,0.00019178,2]
[349755860,1737414638500,-500.0,0.00019178,2]
[349755861,1737414638510,-500.0,0.00019178,2]
[349755862,1737414638524,-500.0,0.00019178,2]
[349755863,1737414638534,-500.0,0.00019178,2]
[349755864,1737414638543,-500.0,0.00019178,2]
[349755865,1737414638552,-565.61,0.00019178,2]
[349755866,1737414638563,-500.0,0.00019178,2]
[349755867,1737414638572,-500.0,0.00019178,2]
[349755868,1737414638582,-500.0,0.00019178,2]
[349755869,1737414638593,-500.19782587,0.00019178,2]
[349755870,1737414638604,-500.0,0.00019178,2]
[349755871,1737414638614,-500.0,0.00019178,2]
[349755872,1737414638623,-255.789155,0.00019178,2]
[349755873,1737414638632,-500.0,0.00019178,2]
[349755874,1737414638642,-433.5724079,0.00019178,2]
[349755875,1737414638651,-500.0,0.00019178,2]
[349755876,1737414638661,-500.0,0.00019178,2]
[349755877,1737414638670,-500.0,0.00019178,2]
[349755878,1737414638680,-500.0,0.00019178,2]
[349755879,1737414638690,-500.0,0.00019178,2]
[349755880,1737414638699,-574.2,0.00019178,2]
[349755881,1737414638709,-500.0,0.00019178,2]
[349755882,1737414638719,-500.0,0.00019178,2]
[349755883,1737414638729,-500.0,0.00019178,2]
[349755884,1737414638739,-500.0,0.00019178,2]
[349755885,1737414638749,-334.392464,0.00019178,2]
[349755886,1737414638758,-500.0,0.00019178,2]
[349755887,1737414638767,-500.0,0.00019178,2]
[349755888,1737414638777,-500.0,0.00019178,2]
[349755889,1737414638787,-641.20432204,0.00019178,2]
[349755890,1737414638796,-500.0,0.00019178,2]
[349755891,1737414638806,-500.0,0.00019178,2]
[349755892,1737414638815,-500.0,0.00019178,2]
[349755893,1737414638824,-500.0,0.00019178,2]
[349755894,1737414638834,-500.0,0.00019178,2]
[349755895,1737414638843,-159.291083,0.00019178,2]
[349755896,1737414638852,-500.0,0.00019178,2]
[349755897,1737414638863,-500.0,0.00019178,2]
[349755898,1737414638872,-500.0,0.00019178,2]
[349755899,1737414638882,-159.175838,0.00019178,2]
[349755900,1737414638891,-500.0,0.00019178,2]
[349755901,1737414638900,-373.55048217,0.00019178,2]
[349755902,1737414638910,-500.0,0.00019178,2]
[349755903,1737414638919,-500.0,0.00019178,2]
[349755904,1737414638928,-500.0,0.00019178,2]
[349755905,1737414638937,-150.0,0.00019178,2]
[349755906,1737414638946,-500.0,0.00019178,2]
[349755907,1737414638956,-591.57,0.00019178,2]
[349755908,1737414638965,-500.0,0.00019178,2]
[349755909,1737414638975,-500.0,0.00019178,2]
[349755910,1737414638983,-500.0,0.00019178,2]
[349755911,1737414638993,-502.4827353,0.00019178,2]
[349755912,1737414639002,-500.0,0.00019178,2]
[349755913,1737414639011,-500.0,0.00019178,2]
[349755914,1737414639020,-5000.0,0.00019178,2]
[349755915,1737414639029,-500.0,0.00019178,2]
[349755916,1737414639038,-500.0,0.00019178,2]
[349755917,1737414639047,-500.0,0.00019178,2]
[349755918,1737414639056,-500.0,0.00019178,2]
[349755919,1737414639066,-500.0,0.00019178,2]
[349755920,1737414639075,-500.0,0.00019178,2]
[349755921,1737414639084,-436.72045769,0.00019178,2]
[349755922,1737414639093,-500.0,0.00019178,2]
[349755923,1737414639102,-368.32417879,0.00019178,2]
[349755924,1737414639111,-501.05169818,0.00019178,2]
[349755925,1737414639120,-500.0,0.00019178,2]
[349755926,1737414639130,-500.0,0.00019178,2]
[349755927,1737414639139,-500.0,0.00019178,2]
[349755928,1737414639149,-500.0,0.00019178,2]
[349755929,1737414639158,-500.0,0.00019178,2]
[349755930,1737414639167,-500.0,0.00019178,2]
[349755931,1737414639177,-500.0,0.00019178,2]
[349755932,1737414639186,-500.0,0.00019178,2]
[349755933,1737414639196,-500.0,0.00019178,2]
[349755934,1737414639206,-500.0,0.00019178,2]
[349755935,1737414639216,-500.0,0.00019178,2]
[349755936,1737414639227,-500.0,0.00019178,2]
[349755937,1737414639236,-500.0,0.00019178,2]
[349755938,1737414639250,-500.0,0.00019178,2]
[349755939,1737414639259,-500.0,0.00019178,2]
[349755940,1737414639269,-500.0,0.00019178,2]
[349755941,1737414639280,-500.0,0.00019178,2]
[349755942,1737414639291,-500.0,0.00019178,2]
[349755943,1737414639502,-500.0,0.00019178,2]
[349755944,1737414639512,-500.0,0.00019178,2]
[349755945,1737414639525,-500.0,0.00019178,2]
[349755946,1737414639535,-500.0,0.00019178,2]
[349755947,1737414639544,-500.0,0.00019178,2]
[349755948,1737414639555,-500.0,0.00019178,2]
[349755949,1737414639564,-500.0,0.00019178,2]
[349755950,1737414639573,-500.96,0.00019178,2]
[349755951,1737414639583,-500.0,0.00019178,2]
[349755952,1737414639593,-500.0,0.00019178,2]
[349755953,1737414639602,-500.0,0.00019178,2]
[349755954,1737414639613,-500.0,0.00019178,2]
[349755955,1737414639622,-500.0,0.00019178,2]
[349755956,1737414639631,-500.0,0.00019178,2]
[349755957,1737414639641,-500.0,0.00019178,2]
[349755958,1737414639650,-500.0,0.00019178,2]
[349755959,1737414639659,-500.0,0.00019178,2]
[349755960,1737414639669,-500.0,0.00019178,2]
[349755961,1737414639679,-500.0,0.00019178,2]
[349755962,1737414639689,-500.0,0.00019178,2]
[349755963,1737414639699,-500.0,0.00019178,2]
[349755964,1737414639708,-500.0,0.00019178,2]
[349755965,1737414639717,-500.0,0.00019178,2]
[349755966,1737414639727,-500.0,0.00019178,2]
[349755967,1737414639736,-500.0,0.00019178,2]
[349755968,1737414639746,-500.0,0.00019178,2]
[349755969,1737414639755,-500.0,0.00019178,2]
[349755970,1737414639764,-500.0,0.00019178,2]
[349755971,1737414639773,-500.0,0.00019178,2]
[349755972,1737414639783,-500.0,0.00019178,2]
[349755973,1737414639792,-500.0,0.00019178,2]
[349755974,1737414639802,-500.0,0.00019178,2]
[349755975,1737414639811,-500.0,0.00019178,2]
[349755976,1737414639820,-504.93570891,0.00019178,2]
[349755977,1737414639829,-519.52,0.00019178,2]
[349755978,1737414639838,-500.0,0.00019178,2]
[349755979,1737414639848,-500.0,0.00019178,2]
[349755980,1737414639858,-500.0,0.00019178,2]
[349755981,1737414639867,-500.0,0.00019178,2]
[349755982,1737414639876,-500.0,0.00019178,2]
[349755983,1737414639886,-500.0,0.00019178,2]
[349755984,1737414639895,-514.15279917,0.00019178,2]
[349755985,1737414639904,-500.0,0.00019178,2]
[349755986,1737414639913,-500.0,0.00019178,2]
[349755987,1737414639922,-500.0,0.00019178,2]
[349755988,1737414639932,-500.0,0.00019178,2]
[349755989,1737414639941,-500.0,0.00019178,2]
[349755990,1737414639951,-500.0,0.00019178,2]
[349755991,1737414639960,-500.0,0.00019178,2]
[349755992,1737414639969,-500.0,0.00019178,2]
[349755993,1737414639979,-500.0,0.00019178,2]
[349755994,1737414639989,-500.0,0.00019178,2]
[349755995,1737414639998,-500.0,0.00019178,2]
[349755996,1737414640007,-1536.87,0.00019178,2]
[349755997,1737414640017,-500.0,0.00019178,2]
[349755998,1737414640027,-500.0,0.00019178,2]
[349755999,1737414640036,-500.0,0.00019178,2]
[349756000,1737414640045,-500.0,0.00019178,2]
[349756001,1737414640055,-500.0,0.00019178,2]
[349756002,1737414640064,-500.0,0.00019178,2]
[349756003,1737414640073,-500.0,0.00019178,2]
[349756004,1737414640083,-1393.31,0.00019178,2]
[349756005,1737414640092,-500.0,0.00019178,2]
[349756006,1737414640101,-500.0,0.00019178,2]
[349756007,1737414640111,-500.0,0.00019178,2]
[349756008,1737414640121,-500.0,0.00019178,2]
[349756009,1737414640131,-500.0,0.00019178,2]
[349756010,1737414640140,-500.0,0.00019178,2]
[349756011,1737414640150,-500.0,0.00019178,2]
[349756012,1737414640159,-500.0,0.00019178,2]
[349756013,1737414640168,-500.0,0.00019178,2]
[349756014,1737414640177,-500.0,0.00019178,2]
[349756015,1737414640186,-1529.01,0.00019178,2]
[349756016,1737414640195,-500.0,0.00019178,2]
[349756017,1737414640204,-500.0,0.00019178,2]
[349756018,1737414640214,-500.0,0.00019178,2]
[349756019,1737414640223,-500.0,0.00019178,2]
[349756020,1737414640232,-500.0,0.00019178,2]
[349756021,1737414640241,-832.48,0.00019178,2]
[349756022,1737414640251,-670.79,0.00019178,2]
[349756023,1737414640260,-598.74,0.00019178,2]
[349756024,1737414640269,-1030.25,0.00019178,2]
[349756025,1737414640278,-1530.61,0.00019178,2]
[349756026,1737414640287,-576.89,0.00019178,2]
[349756027,1737414640296,-686.52,0.00019178,2]
[349756028,1737414640306,-500.0,0.00019178,2]
[349756030,1737414640315,-857.02,0.00019178,2]
[349756032,1737414640323,-500.0,0.00019178,2]
[349756033,1737414640332,-500.0,0.00019178,2]
[349756034,1737414640341,-632.97,0.00019178,2]
[349756035,1737414640351,-500.0,0.00019178,2]
[349756036,1737414640360,-500.0,0.00019178,2]
[349756037,1737414640369,-1665.63,0.00019178,2]
[349756038,1737414640378,-321.46,0.00019178,2]
[349756040,1737414640388,-744.2,0.00019178,2]
[349756042,1737414640397,-750.3,0.00019178,2]
[349756044,1737414640407,-500.0,0.00019178,2]
[349756046,1737414640416,-1018.98,0.00019178,2]
[349756048,1737414640425,-1603.12,0.00019178,2]
[349756050,1737414640434,-792.37,0.00019178,2]
[349756052,1737414640443,-796.06,0.00019178,2]
[349756054,1737414640452,-500.0,0.00019178,2]
[349756056,1737414640462,-1603.27,0.00019178,2]
[349756058,1737414640471,-1763.88,0.00019178,2]
[349756060,1737414640480,-500.0,0.00019178,2]
[349756062,1737414640490,-500.0,0.00019178,2]
[349756064,1737414640500,-679.29,0.00019178,2]
[349756066,1737414640510,-780.06,0.00019178,2]
[349756068,1737414640523,-500.0,0.00019178,2]
[349756070,1737414640532,-500.0,0.00019178,2]
[349756072,1737414640542,-617.16,0.00019178,2]
[349756074,1737414640551,-2476.04,0.00019178,2]
[349756076,1737414640561,-500.0,0.00019178,2]
[349756078,1737414640571,-1636.24,0.00019178,2]
[349756080,1737414640580,-1187.47,0.00019178,2]
[349756082,1737414640590,-500.0,0.00019178,2]
[349756084,1737414640601,-825.56,0.00019178,2]
[349756086,1737414640613,-2476.64,0.00019178,2]
[349756088,1737414640623,-500.0,0.00019178,2]
[349756090,1737414640634,-1139.4,0.00019178,2]
[349756092,1737414640643,-830.8,0.00019178,2]
[349756094,1737414640653,-1178.79,0.00019178,2]